fUSD/lending_fUSD_20240428
["ID","MTS","AMOUNT","RATE_DAILY","PERIOD"]
[324805795,1714339894113,-500.0,0.00012328,2]
[324805796,1714339894123,-369.9,0.00012328,2]
[324805797,1714339894132,-565.97,0.00012328,2]
[324805798,1714339894141,-500.0,0.00012328,2]
[324805799,1714339894151,-875.78,0.00012328,2]
[324805800,1714339894160,-500.0,0.00012328,2]
[324805801,1714339894171,-500.0,0.00012328,2]
[324805802,1714339894180,-500.0,0.00012328,2]
[324805803,1714339894189,-500.0,0.00012328,2]
[324805804,1714339894199,-526.69,0.00012328,2]
[324805805,1714339894208,-560.54,0.00012328,2]
[324805806,1714339894217,-736.07,0.00012328,2]
[324805807,1714339894226,-500.0,0.00012328,2]
[324805808,1714339894236,-500.0,0.00012328,2]
[324805809,1714339894245,-500.0,0.00012328,2]
[324805810,1714339894254,-500.0,0.00012328,2]
[324805811,1714339894264,-604.78,0.00012328,2]
[324805812,1714339894273,-500.0,0.00012328,2]
[324805813,1714339894282,-500.0,0.00012328,2]
[324805814,1714339894291,-500.0,0.00012328,2]
[324805815,1714339894301,-500.0,0.00012328,2]
[324805816,1714339894310,-500.0,0.00012328,2]
[324805817,1714339894319,-500.0,0.00012328,2]
[324805818,1714339894328,-523.54,0.00012328,2]
[324805819,1714339894338,-2956.01,0.00012328,2]
[324805820,1714339894347,-500.0,0.00012328,2]
[324805821,1714339894356,-565.94,0.00012328,2]
[324805822,1714339894365,-500.0,0.00012328,2]
[324805823,1714339894375,-289.65,0.00012328,2]
[324805824,1714339894384,-500.0,0.00012328,2]
[324805825,1714339894394,-500.0,0.00012328,2]
[324805826,1714339894403,-500.0,0.00012328,2]
[324805827,1714339894413,-500.0,0.00012328,2]
[324805828,1714339894424,-500.0,0.00012328,2]
[324805829,1714339894433,-825.93,0.00012328,2]
[324805830,1714339894443,-500.0,0.00012328,2]
[324805831,1714339894452,-602.04,0.00012328,2]
[324805832,1714339894461,-651.65,0.00012328,2]
[324805833,1714339894470,-1568.74,0.00012328,2]
[324805834,1714339894479,-520.26,0.00012328,2]
[324805835,1714339894488,-500.0,0.00012328,2]
[324805836,1714339894497,-249.00269963,0.00012328,2]
[324805837,1714339894506,-500.0,0.00012328,2]
[324805838,1714339894515,-500.0,0.00012328,2]
[324805839,1714339894524,-1140.77,0.00012328,2]
[324805840,1714339894533,-558.66,0.00012328,2]
[324805841,1714339894542,-500.0,0.00012328,2]
[324805842,1714339894551,-549.86,0.00012328,2]
[324805843,1714339894560,-500.0,0.00012328,2]
[324805844,1714339894570,-500.0,0.00012328,2]
[324805845,1714339894579,-960.02,0.00012328,2]
[324805846,1714339894588,-500.0,0.00012328,2]
[324805847,1714339894597,-1723.08,0.00012328,2]
[324805848,1714339894607,-500.0,0.00012328,2]
[324805849,1714339894616,-500.0,0.00012328,2]
[324805850,1714339894626,-500.0,0.00012328,2]
[324805851,1714339894635,-500.0,0.00012328,2]
[324805852,1714339894644,-500.0,0.00012328,2]
[324805853,1714339894653,-555.74,0.00012328,2]
[324805854,1714339894663,-500.0,0.00012328,2]
[324805855,1714339894673,-500.0,0.00012328,2]
[324805856,1714339894683,-1272.72,0.00012328,2]
[324805857,1714339894692,-500.0,0.00012328,2]
[324805858,1714339894702,-1044.49,0.00012328,2]
[324805859,1714339894711,-500.0,0.00012328,2]
[324805860,1714339894721,-854.35,0.00012328,2]
[324805861,1714339894731,-500.0,0.00012328,2]
[324805862,1714339894740,-500.0,0.00012328,2]
[324805863,1714339894750,-880.39,0.00012328,2]
[324805864,1714339894760,-500.0,0.00012328,2]
[324805865,1714339894769,-500.0,0.00012328,2]
[324805866,1714339894783,-1228.27,0.00012328,2]
[324805867,1714339894793,-500.0,0.00012328,2]
[324805868,1714339894803,-729.04,0.00012328,2]
[324805869,1714339894812,-378.10815004,0.00012328,2]
[324805870,1714339894823,-500.0,0.00012328,2]
[324805871,1714339894832,-500.0,0.00012328,2]
[324805872,1714339894842,-530.05,0.00012328,2]
[324805873,1714339894852,-500.0,0.00012328,2]
[324805874,1714339894862,-3505.37,0.00012328,2]
[324805875,1714339894874,-797.92,0.00012328,2]
[324805876,1714339894883,-529.45,0.00012328,2]
[324805877,1714339894893,-629.63,0.00012328,2]
[324805878,1714339894904,-500.0,0.00012328,2]
[324805879,1714339894913,-500.0,0.00012328,2]
[324805880,1714339894924,-1082.28,0.00012328,2]
[324805881,1714339894934,-500.0,0.00012328,2]
[324805882,1714339894944,-3192.23,0.00012328,2]
[324805883,1714339894953,-500.0,0.00012328,2]
[324805884,1714339894963,-500.0,0.00012328,2]
[324805885,1714339894972,-4836.83,0.00012328,2]
[324805886,1714339894982,-557.56,0.00012328,2]
[324805887,1714339894992,-1419.08,0.00012328,2]
[324805888,1714339895001,-500.0,0.00012328,2]
[324805889,1714339895010,-3170.41,0.00012328,2]
[324805890,1714339895020,-500.0,0.00012328,2]
[324805891,1714339895030,-318.9,0.00012328,2]
[324805892,1714339895040,-500.0,0.00012328,2]
[324805893,1714339895050,-500.0,0.00012328,2]
[324805894,1714339895060,-554.07,0.00012328,2]
[324805895,1714339895069,-1075.74,0.00012328,2]
[324805896,1714339895079,-3460.09,0.00012328,2]
[324805897,1714339895089,-1169.99,0.00012328,2]
[324805898,1714339895099,-812.15,0.00012328,2]
[324805899,1714339895108,-9425.46,0.00012328,2]
[324805900,1714339895118,-500.0,0.00012328,2]
[324805901,1714339895128,-1842.15,0.00012328,2]
[324805902,1714339895138,-500.0,0.00012328,2]
[324805903,1714339895147,-500.0,0.00012328,2]
[324805904,1714339895157,-1069.53,0.00012328,2]
[324805905,1714339895166,-500.0,0.00012328,2]
[324805906,1714339895177,-500.0,0.00012328,2]
[324805907,1714339895188,-500.0,0.00012328,2]
[324805908,1714339895197,-500.0,0.00012328,2]
[324805909,1714339895207,-500.0,0.00012328,2]
[324805910,1714339895216,-500.0,0.00012328,2]
[324805911,1714339895225,-14272.99,0.00012328,2]
[324805912,1714339895235,-544.14,0.00012328,2]
[324805913,1714339895244,-420.93,0.00012328,2]
[324805914,1714339895254,-7051.41,0.00012328,2]
[324805915,1714339895263,-500.0,0.00012328,2]
[324805916,1714339895273,-2707.78,0.00012328,2]
[324805917,1714339895282,-500.0,0.00012328,2]
[324805918,1714339895291,-1038.22,0.00012328,2]
[324805919,1714339895300,-500.0,0.00012328,2]
[324805920,1714339895309,-789.36,0.00012328,2]
[324805921,1714339895319,-2766.64,0.00012328,2]
[324805922,1714339895328,-987.03,0.00012328,2]
[324805923,1714339895337,-1211.54,0.00012328,2]
[324805924,1714339895347,-1666.13,0.00012328,2]
[324805925,1714339895356,-675.35,0.00012328,2]
[324805926,1714339895367,-500.0,0.00012328,2]
[324805927,1714339895376,-1349.22,0.00012328,2]
[324805928,1714339895386,-1516.18,0.00012328,2]
[324805929,1714339895397,-500.0,0.00012328,2]
[324805930,1714339895407,-6591.59,0.00012328,2]
[324805931,1714339895416,-1899.29,0.00012328,2]
[324805932,1714339895427,-500.0,0.00012328,2]
[324805933,1714339895436,-783.36,0.00012328,2]
[324805934,1714339895446,-1988.95,0.00012328,2]
[324805935,1714339895455,-500.0,0.00012328,2]
[324805936,1714339895465,-1261.65,0.00012328,2]
[324805937,1714339895475,-2135.06,0.00012328,2]
[324805938,1714339895484,-500.0,0.00012328,2]
[324805939,1714339895494,-562.7,0.00012328,2]
[324805940,1714339895504,-500.0,0.00012328,2]
[324805941,1714339895513,-6232.35,0.00012328,2]
[324805942,1714339895523,-500.0,0.00012328,2]
[324805943,1714339895532,-659.22,0.00012328,2]
[324805944,1714339895541,-1410.0,0.00012328,2]
[324805945,1714339895551,-224.83,0.00012328,2]
[324805946,1714339895560,-479.4,0.00012328,2]
[324805947,1714339895570,-1672.92,0.00012328,2]
[324805948,1714339895579,-1799.04,0.00012328,2]
[324805949,1714339895662,-500.0,0.00012328,2]
[324805950,1714339895672,-895.24,0.00012328,2]
[324805951,1714339895682,-1513.28,0.00012328,2]
[324805952,1714339895691,-500.0,0.00012328,2]
[324805953,1714339895702,-6800.76,0.00012328,2]
[324805954,1714339895711,-500.0,0.00012328,2]
[324805955,1714339895721,-753.18,0.00012328,2]
[324805956,1714339895731,-500.0,0.00012328,2]
[324805957,1714339895740,-178.34704785,0.00012328,2]
[324805958,1714339895750,-1733.37,0.00012328,2]
[324805959,1714339895760,-782.1,0.00012328,2]
[324805960,1714339895770,-1652.85,0.00012328,2]
[324805961,1714339895781,-500.0,0.00012328,2]
[324805962,1714339895791,-500.0,0.00012328,2]
[324805963,1714339895800,-1590.77,0.00012328,2]
[324805964,1714339895809,-12133.37,0.00012328,2]
[324805965,1714339895819,-2025.62,0.00012328,2]
[324805966,1714339895828,-1421.85,0.00012328,2]
[324805967,1714339895837,-1135.8,0.00012328,2]
[324805968,1714339895846,-500.0,0.00012328,2]
[324805969,1714339895857,-4575.67,0.00012328,2]
[324805970,1714339895867,-500.0,0.00012328,2]
[324805971,1714339895876,-1396.35,0.00012328,2]
[324805972,1714339895886,-6107.04,0.00012328,2]
[324805973,1714339895896,-588.97037649,0.00012328,2]
[324805974,1714339895905,-998.38,0.00012328,2]
[324805975,1714339895915,-2527.69,0.00012328,2]
[324805976,1714339895925,-2789.13,0.00012328,2]
[324805977,1714339895934,-1761.96,0.00012328,2]
[324805978,1714339895944,-500.0,0.00012328,2]
[324805979,1714339895954,-1062.84,0.00012328,2]
[324805980,1714339895963,-500.0,0.00012328,2]
[324805981,1714339895972,-1977.9,0.00012328,2]
[324805982,1714339895981,-2491.39,0.00012328,2]
[324805983,1714339895991,-1098.32,0.00012328,2]
[324805984,1714339896001,-500.0,0.00012328,2]
[324805985,1714339896010,-3361.84,0.00012328,2]
[324805986,1714339896019,-500.0,0.00012328,2]
[324805987,1714339896029,-1081.51,0.00012328,2]
[324805988,1714339896039,-2735.15,0.00012328,2]
[324805989,1714339896049,-500.0,0.00012328,2]
[324805990,1714339896058,-500.0,0.00012328,2]
[324805991,1714339896068,-1862.58,0.00012328,2]
[324805992,1714339896078,-4338.42,0.00012328,2]
[324805993,1714339896088,-1752.48,0.00012328,2]
[324805994,1714339896098,-500.0,0.00012328,2]
[324805995,1714339896108,-500.0,0.00012328,2]
[324805996,1714339896119,-2116.48,0.00012328,2]
[324805997,1714339896129,-844.65,0.00012328,2]
[324805998,1714339896139,-500.0,0.00012328,2]
[324805999,1714339896149,-1415.56,0.00012328,2]
[324806000,1714339896160,-1696.77,0.00012328,2]
[324806001,1714339896170,-552.51,0.00012328,2]
[324806002,1714339896180,-500.0,0.00012328,2]
[324806003,1714339896190,-500.0,0.00012328,2]
[324806004,1714339896199,-7394.13,0.00012328,2]
[324806005,1714339896209,-500.0,0.00012328,2]
[324806006,1714339896218,-500.0,0.00012328,2]
[324806007,1714339896228,-500.0,0.00012328,2]
[324806008,1714339896237,-2704.4,0.00012328,2]
[324806009,1714339896246,-500.0,0.00012328,2]
[324806010,1714339896255,-547.48,0.00012328,2]
[324806011,1714339896265,-500.0,0.00012328,2]
[324806012,1714339896274,-261.6829096,0.00012328,2]
[324806013,1714339896283,-869.1,0.00012328,2]
[324806014,1714339896292,-500.0,0.00012328,2]
[324806015,1714339896301,-709.72,0.00012328,2]
[324806016,1714339896311,-3366.67,0.00012328,2]
[324806017,1714339896320,-849.0,0.00012328,2]
[324806018,1714339896330,-4609.23,0.00012328,2]
[324806019,1714339896339,-500.0,0.00012328,2]
[324806020,1714339896348,-1257.26,0.00012328,2]
[324806021,1714339896358,-500.0,0.00012328,2]
[324806022,1714339896367,-972.25,0.00012328,2]
[324806023,1714339896377,-500.0,0.00012328,2]
[324806024,1714339896387,-1051.8,0.00012328,2]
[324806025,1714339896396,-1129.36,0.00012328,2]
[324806026,1714339896406,-500.0,0.00012328,2]
[324806027,1714339896415,-500.0,0.00012328,2]
[324806028,1714339896426,-1721.28,0.00012328,2]
[324806029,1714339896436,-1025.92,0.00012328,2]
[324806030,1714339896445,-505.66,0.00012328,2]
[324806031,1714339896455,-500.0,0.00012328,2]
[324806032,1714339896465,-500.0,0.00012328,2]
[324806033,1714339896474,-784.13,0.00012328,2]
[324806034,1714339896484,-3106.8,0.00012328,2]
[324806035,1714339896493,-500.0,0.00012328,2]
[324806036,1714339896502,-1332.25,0.00012328,2]
[324806037,1714339896512,-1770.89,0.00012328,2]
[324806038,1714339896521,-500.0,0.00012328,2]
[324806039,1714339896530,-3285.67,0.00012328,2]
[324806040,1714339896539,-500.0,0.00012328,2]
[324806041,1714339896550,-1973.0,0.00012328,2]
[324806042,1714339896559,-500.0,0.00012328,2]
[324806043,1714339896568,-500.0,0.00012328,2]
[324806044,1714339896578,-581.39,0.00012328,2]
[324806045,1714339896587,-500.0,0.00012328,2]
[324806046,1714339896597,-5056.57,0.00012328,2]
[324806047,1714339896606,-500.0,0.00012328,2]
[324806048,1714339896616,-500.0,0.00012328,2]
[324806049,1714339896625,-528.94,0.00012328,2]
[324806050,1714339896634,-1960.25,0.00012328,2]
[324806051,1714339896643,-500.0,0.00012328,2]
[324806052,1714339896652,-500.0,0.00012328,2]
[324806053,1714339896662,-854.46,0.00012328,2]
[324806054,1714339896672,-500.0,0.00012328,2]
[324806055,1714339896683,-505.33,0.00012328,2]
[324806056,1714339896692,-1460.22,0.00012328,2]
[324806057,1714339896701,-500.0,0.00012328,2]
[324806058,1714339896711,-500.0,0.00012328,2]
[324806059,1714339896720,-4144.13,0.00012328,2]
[324806060,1714339896730,-500.0,0.00012328,2]
[324806061,1714339896739,-2730.97,0.00012328,2]
[324806062,1714339896749,-2002.94,0.00012328,2]
[324806063,1714339896759,-1318.77,0.00012328,2]
[324806064,1714339896768,-500.0,0.00012328,2]
[324806065,1714339896780,-500.0,0.00012328,2]
[324806066,1714339896791,-1001.05,0.00012328,2]
[324806067,1714339896800,-500.0,0.00012328,2]
[324806068,1714339896809,-500.0,0.00012328,2]
[324806069,1714339896819,-500.0,0.00012328,2]
[324806070,1714339896830,-9331.99,0.00012328,2]
[324806071,1714339896839,-4277.49,0.00012328,2]
[324806072,1714339896849,-500.0,0.00012328,2]
[324806073,1714339896859,-5193.46,0.00012328,2]
[324806074,1714339896868,-775.85,0.00012328,2]
[324806075,1714339896878,-743.46,0.00012328,2]
[324806076,1714339896888,-500.0,0.00012328,2]
[324806077,1714339896897,-500.0,0.00012328,2]
[324806078,1714339896906,-3252.39319555,0.00012343,2]
[324806079,1714339896915,-1000.0,0.00012468,2]
[324806080,1714339896927,-251.74141407,0.000125,2]
[324806081,1714339896936,-3252.39319555,0.00012529,2]
[324806082,1714339896946,-175.36,0.00012541,2]
[324806083,1714339896955,-1249.83,0.00012601,2]
[324806084,1714339896964,-329.10822366,0.00012602,2]
[324806085,1714339896974,-500.0,0.00012602,2]
[324806086,1714339896983,-629.3155936,0.00012602,2]
[324806087,1714339896993,-500.0,0.00012602,2]
[324806088,1714339897002,-500.0,0.00012602,2]
[324806089,1714339897012,-500.0,0.00012602,2]
[324806090,1714339897021,-500.0,0.00012602,2]
[324806091,1714339897031,-500.0,0.00012602,2]
[324806092,1714339897040,-500.0,0.00012602,2]
[324806093,1714339897050,-500.0,0.00012602,2]
[324806094,1714339897059,-500.0,0.00012602,2]
[324806095,1714339897068,-500.0,0.00012602,2]
[324806096,1714339897077,-500.0,0.00012602,2]
[324806097,1714339897087,-500.0,0.00012602,2]
[324806098,1714339897095,-500.0,0.00012602,2]
[324806099,1714339897105,-506.83,0.00012602,2]
[324806100,1714339897114,-500.0,0.00012602,2]
[324806101,1714339897123,-500.0,0.00012602,2]
[324806102,1714339897132,-379.68017886,0.00012602,2]
[324806103,1714339897142,-500.0,0.00012602,2]
[324806104,1714339897150,-500.0,0.00012602,2]
[324806105,1714339897159,-490.59756673,0.00012602,2]
[324806106,1714339897169,-500.0,0.00012602,2]
[324806107,1714339897178,-500.0,0.00012602,2]
[324806108,1714339897187,-500.0,0.00012602,2]
[324806109,1714339897196,-500.0,0.00012602,2]
[324806110,1714339897206,-500.0,0.00012602,2]
[324806111,1714339897215,-500.0,0.00012602,2]
[324806112,1714339897224,-500.0,0.00012602,2]
[324806113,1714339897234,-500.0,0.00012602,2]
[324806114,1714339897244,-500.0,0.00012602,2]
[324806115,1714339897254,-500.0,0.00012602,2]
[324806116,1714339897264,-500.0,0.00012602,2]
[324806117,1714339897275,-500.0,0.00012602,2]
[324806118,1714339897285,-500.0,0.00012602,2]
[324806119,1714339897295,-500.0,0.00012602,2]
[324806120,1714339897305,-500.0,0.00012602,2]
[324806121,1714339897316,-500.0,0.00012602,2]
[324806122,1714339897326,-586.34,0.00012602,2]
[324806123,1714339897336,-517.57,0.00012602,2]
[324806124,1714339897346,-733.89,0.00012602,2]
[324806125,1714339897355,-674.04,0.00012602,2]
[324806126,1714339897364,-500.0,0.00012602,2]
[324806127,1714339897374,-500.0,0.00012602,2]
[324806128,1714339897383,-500.0,0.00012602,2]
[324806129,1714339897394,-500.0,0.00012602,2]
[324806130,1714339897404,-500.0,0.00012602,2]
[324806131,1714339897414,-500.0,0.00012602,2]
[324806132,1714339897424,-500.0,0.00012602,2]
[324806133,1714339897433,-500.0,0.00012602,2]
[324806134,1714339897443,-500.0,0.00012602,2]
[324806135,1714339897452,-552.07,0.00012602,2]
[324806136,1714339897462,-500.0,0.00012602,2]
[324806137,1714339897472,-588.66,0.00012602,2]
[324806138,1714339897481,-500.0,0.00012602,2]
[324806139,1714339897491,-798.42,0.00012602,2]
[324806140,1714339897501,-500.0,0.00012602,2]
[324806141,1714339897511,-500.0,0.00012602,2]
[324806142,1714339897522,-928.66,0.00012602,2]
[324806143,1714339897532,-505.51,0.00012602,2]
[324806144,1714339897541,-500.0,0.00012602,2]
[324806145,1714339897551,-500.0,0.00012602,2]
[324806146,1714339897561,-903.89,0.00012602,2]
[324806147,1714339897572,-737.63,0.00012602,2]
[324806148,1714339897581,-500.0,0.00012602,2]
[324806149,1714339897591,-500.0,0.00012602,2]
[324806150,1714339897601,-718.49,0.00012602,2]
[324806151,1714339897612,-864.97,0.00012602,2]
[324806152,1714339897621,-500.0,0.00012602,2]
[324806153,1714339897631,-504.53,0.00012602,2]
[324806154,1714339897641,-553.51299869,0.00012602,2]
[324806155,1714339897652,-367.06,0.00012602,2]
[324806156,1714339897663,-572.06038572,0.00012602,2]
[324806157,1714339897672,-500.0,0.00012602,2]
[324806158,1714339897681,-594.05,0.00012602,2]
[324806159,1714339897691,-500.0,0.00012602,2]
[324806160,1714339897700,-500.0,0.00012602,2]
[324806161,1714339897710,-500.0,0.00012602,2]
[324806162,1714339897721,-870.38,0.00012602,2]
[324806163,1714339897731,-491.29,0.00012602,2]
[324806164,1714339897741,-501.18,0.00012602,2]
[324806165,1714339897752,-500.0,0.00012602,2]
[324806166,1714339897763,-500.0,0.00012602,2]
[324806167,1714339897772,-500.0,0.00012602,2]
[324806168,1714339897787,-500.0,0.00012602,2]
[324806169,1714339897796,-500.0,0.00012602,2]
[324806170,1714339897805,-500.0,0.00012602,2]
[324806171,1714339897814,-500.0,0.00012602,2]
[324806172,1714339897824,-500.0,0.00012602,2]
[324806173,1714339897833,-500.0,0.00012602,2]
[324806174,1714339897843,-500.0,0.00012602,2]
[324806175,1714339897853,-610.01,0.00012602,2]
[324806176,1714339897863,-500.0,0.00012602,2]
[324806177,1714339897873,-567.57,0.00012602,2]
[324806178,1714339897883,-500.0,0.00012602,2]
[324806179,1714339897893,-500.0,0.00012602,2]
[324806180,1714339897902,-1451.39,0.00012602,2]
[324806181,1714339897912,-500.0,0.00012602,2]
[324806182,1714339897922,-500.0,0.00012602,2]
[324806183,1714339897932,-1302.89,0.00012602,2]
[324806184,1714339897941,-500.0,0.00012602,2]
[324806185,1714339897951,-545.45,0.00012602,2]
[324806186,1714339897960,-500.0,0.00012602,2]
[324806187,1714339897970,-500.0,0.00012602,2]
[324806188,1714339897979,-500.0,0.00012602,2]
[324806189,1714339897988,-500.0,0.00012602,2]
[324806190,1714339897998,-500.0,0.00012602,2]
[324806191,1714339898007,-525.6,0.00012602,2]
[324806192,1714339898016,-500.0,0.00012602,2]
[324806193,1714339898025,-500.0,0.00012602,2]
[324806194,1714339898035,-500.0,0.00012602,2]
[324806195,1714339898044,-500.0,0.00012602,2]
[324806196,1714339898054,-500.0,0.00012602,2]
[324806197,1714339898063,-585.48,0.00012602,2]
[324806198,1714339898072,-584.64,0.00012602,2]
[324806199,1714339898082,-857.33,0.00012602,2]
[324806200,1714339898091,-500.0,0.00012602,2]
[324806201,1714339898101,-704.02,0.00012602,2]
[324806202,1714339898110,-500.0,0.00012602,2]
[324806203,1714339898119,-1320.75,0.00012602,2]
[324806204,1714339898128,-500.0,0.00012602,2]
[324806205,1714339898138,-500.0,0.00012602,2]
[324806206,1714339898148,-507.58,0.00012602,2]
[324806207,1714339898158,-500.0,0.00012602,2]
[324806208,1714339898168,-500.0,0.00012602,2]
[324806209,1714339898178,-500.0,0.00012602,2]
[324806210,1714339898187,-500.0,0.00012602,2]
[324806211,1714339898196,-730.12,0.00012602,2]
[324806212,1714339898206,-500.0,0.00012602,2]
[324806213,1714339898215,-596.65,0.00012602,2]
[324806214,1714339898224,-500.0,0.00012602,2]
[324806215,1714339898233,-369.9,0.00012602,2]
[324806216,1714339898243,-565.97,0.00012602,2]
[324806217,1714339898252,-500.0,0.00012602,2]
[324806218,1714339898261,-875.78,0.00012602,2]
[324806219,1714339898271,-500.0,0.00012602,2]
[324806220,1714339898280,-500.0,0.00012602,2]
[324806221,1714339898289,-500.0,0.00012602,2]
[324806222,1714339898298,-500.0,0.00012602,2]
[324806223,1714339898307,-526.69,0.00012602,2]
[324806224,1714339898316,-560.54,0.00012602,2]
[324806225,1714339898326,-736.07,0.00012602,2]
[324806226,1714339898335,-500.0,0.00012602,2]
[324806227,1714339898344,-500.0,0.00012602,2]
[324806228,1714339898353,-500.0,0.00012602,2]
[324806229,1714339898362,-235.8071716,0.00012602,2]
[324806230,1714339898372,-604.78,0.00012602,2]
[324806231,1714339898382,-500.0,0.00012602,2]
[324806232,1714339898391,-500.0,0.00012602,2]
[324806233,1714339898400,-500.0,0.00012602,2]
[324806234,1714339898409,-500.0,0.00012602,2]
[324806235,1714339898419,-500.0,0.00012602,2]
[324806236,1714339898429,-523.54,0.00012602,2]
[324806237,1714339898439,-2956.01,0.00012602,2]
[324806238,1714339898447,-500.0,0.00012602,2]
[324806239,1714339898457,-565.94,0.00012602,2]
[324806240,1714339898466,-500.0,0.00012602,2]
[324806241,1714339898476,-500.0,0.00012602,2]
[324806242,1714339898485,-500.0,0.00012602,2]
[324806243,1714339898494,-500.0,0.00012602,2]
[324806244,1714339898503,-500.0,0.00012602,2]
[324806245,1714339898513,-500.0,0.00012602,2]
[324806246,1714339898522,-825.93,0.00012602,2]
[324806247,1714339898531,-500.0,0.00012602,2]
[324806248,1714339898541,-602.04,0.00012602,2]
[324806249,1714339898550,-651.65,0.00012602,2]
[324806250,1714339898560,-1568.74,0.00012602,2]
[324806251,1714339898569,-520.26,0.00012602,2]
[324806252,1714339898579,-500.0,0.00012602,2]
[324806253,1714339898589,-500.0,0.00012602,2]
[324806254,1714339898599,-500.0,0.00012602,2]
[324806255,1714339898608,-1140.77,0.00012602,2]
[324806256,1714339898618,-500.0,0.00012602,2]
[324806257,1714339898627,-549.86,0.00012602,2]
[324806258,1714339898637,-500.0,0.00012602,2]
[324806259,1714339898646,-500.0,0.00012602,2]
[324806260,1714339898656,-960.02,0.00012602,2]
[324806261,1714339898666,-500.0,0.00012602,2]
[324806262,1714339898676,-1723.08,0.00012602,2]
[324806263,1714339898686,-500.0,0.00012602,2]
[324806264,1714339898696,-500.0,0.00012602,2]
[324806265,1714339898706,-500.0,0.00012602,2]
[324806266,1714339898715,-500.0,0.00012602,2]
[324806267,1714339898725,-500.0,0.00012602,2]
[324806268,1714339898734,-555.74,0.00012602,2]
[324806269,1714339898744,-500.0,0.00012602,2]
[324806270,1714339898754,-500.0,0.00012602,2]
[324806271,1714339898763,-1272.72,0.00012602,2]
[324806272,1714339898774,-500.0,0.00012602,2]
[324806273,1714339898790,-1044.49,0.00012602,2]
[324806274,1714339898799,-500.0,0.00012602,2]
[324806275,1714339898809,-854.35,0.00012602,2]
[324806276,1714339898819,-500.0,0.00012602,2]
[324806277,1714339898830,-500.0,0.00012602,2]
[324806278,1714339898840,-880.39,0.00012602,2]
[324806279,1714339898850,-500.0,0.00012602,2]
[324806280,1714339898862,-500.0,0.00012602,2]
[324806281,1714339898872,-1228.27,0.00012602,2]
[324806282,1714339898882,-500.0,0.00012602,2]
[324806283,1714339898891,-729.04,0.00012602,2]
[324806284,1714339898905,-500.0,0.00012602,2]
[324806285,1714339898914,-500.0,0.00012602,2]
[324806286,1714339898925,-530.05,0.00012602,2]
[324806287,1714339898935,-500.0,0.00012602,2]
[324806288,1714339898944,-3505.37,0.00012602,2]
[324806289,1714339898954,-797.92,0.00012602,2]
[324806290,1714339898966,-529.45,0.00012602,2]
[324806291,1714339898977,-629.63,0.00012602,2]
[324806292,1714339898988,-500.0,0.00012602,2]
[324806293,1714339899000,-500.0,0.00012602,2]
[324806294,1714339899011,-1082.28,0.00012602,2]